[Event "MČR 2022 rapid"]
[Site "Turnov, Czech Republic"]
[Date "2022.09.11"]
[Round "4.7"]
[White "Roubalík, Jakub"]
[Black "Finěk, Václav"]
[Result "1/2-1/2"]
[TimeControl "2x 15 min + 5s/move"]
[WhiteElo "2339"]
[BlackElo "2062"]

1. d4 {[%clk 00:15:08]} {[%emt 00:00:05]} Nf6 {[%clk 00:15:05]} {[%emt
00:00:12]} 2. c4 {[%clk 00:15:11]} e6 {[%clk 00:15:08]} 3. Nf3 {[%clk
00:15:14]} {[%emt 00:00:04]} d5 {[%clk 00:15:11]} 4. Nc3 {[%clk 00:15:18]} c6
{[%clk 00:15:11]} {[%emt 00:00:04]} 5. Bg5 {[%clk 00:15:17]} {[%emt 00:00:05]}
Nbd7 {[%clk 00:14:45]} {[%emt 00:00:30]} 6. e3 {[%clk 00:15:20]} Bd6 {[%clk
00:14:40]} {[%emt 00:00:08]} 7. Qc2 {[%clk 00:15:06]} {[%emt 00:00:19]} O-O
{[%clk 00:14:04]} {[%emt 00:00:44]} 8. Bd3 {[%clk 00:14:57]} {[%emt 00:00:10]}
h6 {[%clk 00:13:55]} {[%emt 00:00:15]} 9. Bh4 {[%clk 00:15:01]} dxc4 {[%clk
00:12:08]} {[%emt 00:01:53]} 10. Bxc4 {[%clk 00:15:04]} {[%emt 00:00:06]} b5
{[%clk 00:11:33]} {[%emt 00:00:36]} 11. Bd3 {[%clk 00:14:45]} {[%emt 00:00:25]}
Bb7 {[%clk 00:11:17]} {[%emt 00:00:20]} 12. O-O {[%clk 00:14:08]} {[%emt
00:00:46]} Qb6 {[%clk 00:10:57]} {[%emt 00:00:25]} 13. a4 {[%clk 00:13:45]}
{[%emt 00:00:30]} a6 {[%clk 00:10:38]} {[%emt 00:00:19]} 14. Qe2 {[%clk
00:13:16]} {[%emt 00:00:37]} b4 {[%clk 00:09:31]} {[%emt 00:01:16]} 15. a5
{[%clk 00:13:11]} {[%emt 00:00:05]} Qa7 {[%clk 00:07:45]} {[%emt 00:01:48]} 16.
Na4 {[%clk 00:11:56]} {[%emt 00:01:19]} c5 {[%clk 00:07:18]} {[%emt 00:00:34]}
17. dxc5 {[%clk 00:11:09]} {[%emt 00:00:55]} Nxc5 {[%clk 00:06:17]} {[%emt
00:01:02]} 18. Nxc5 {[%clk 00:09:52]} {[%emt 00:01:22]} Qxc5 {[%clk 00:06:12]}
{[%emt 00:00:11]} 19. Bg3 {[%clk 00:08:09]} {[%emt 00:01:46]} Bxg3 20. hxg3
{[%clk 00:08:11]} Qh5 {[%clk 00:05:03]} {[%emt 00:00:44]} 21. e4 {[%clk
00:07:55]} {[%emt 00:00:24]} Rfd8 {[%clk 00:03:57]} {[%emt 00:01:09]} 22. Rfc1
{[%clk 00:06:59]} {[%emt 00:00:59]} Rd7 {[%clk 00:03:18]} {[%emt 00:00:44]} 23.
Ra4 {[%clk 00:04:38]} {[%emt 00:02:27]} Rad8 {[%clk 00:02:25]} {[%emt
00:00:57]} 24. Rxb4 {[%clk 00:04:38]} {[%emt 00:00:07]} Ng4 {[%clk 00:01:53]}
{[%emt 00:00:35]} 25. Rb3 {[%clk 00:03:56]} {[%emt 00:00:56]} Qxa5 {[%clk
00:01:34]} {[%emt 00:00:15]} 26. Ra3 {[%clk 00:03:00]} {[%emt 00:01:25]} Qh5
{[%clk 00:01:03]} {[%emt 00:00:13]} 27. Rac3 {[%clk 00:02:07]} {[%emt
00:00:57]} Ne5 {[%clk 00:00:16]} {[%emt 00:00:52]} 28. Nxe5 {[%clk 00:01:28]}
{[%emt 00:00:44]} Qxe5 {[%clk 00:00:20]} 29. Qe3 {[%clk 00:01:15]} {[%emt
00:00:19]} Qd4 {[%clk 00:00:17]} {[%emt 00:00:08]} 30. Qxd4 {[%clk 00:01:03]}
{[%emt 00:00:22]} Rxd4 {[%clk 00:00:21]} 31. Be2 {[%clk 00:01:04]} Rxe4 {[%clk
00:00:18]} {[%emt 00:00:09]} 32. Bf3 {[%clk 00:01:06]} {[%emt 00:00:04]} Rb4
{[%clk 00:00:23]} 33. Bxb7 {[%clk 00:01:02]} {[%emt 00:00:10]} Rxb7 {[%clk
00:00:27]} {[%emt 00:00:05]} 34. Rc8 {[%clk 00:00:49]} {[%emt 00:00:11]} Rxc8
{[%clk 00:00:27]} {[%emt 00:00:07]} 35. Rxc8+ {[%clk 00:00:53]} Kh7 {[%clk
00:00:31]} {[%emt 00:00:04]} 36. Rc6 {[%clk 00:00:51]} {[%emt 00:00:05]} Rxb2
{[%clk 00:00:25]} {[%emt 00:00:09]} 37. Rxa6 {[%clk 00:00:55]} {[%emt
00:00:08]} Rb1+ {[%clk 00:00:29]} 38. Kh2 {[%clk 00:00:59]} h5 {[%clk
00:00:27]} {[%emt 00:00:04]} 39. Ra4 {[%clk 00:00:55]} {[%emt 00:00:10]} Kg6
{[%clk 00:00:24]} {[%emt 00:00:05]} 40. Ra5 {[%clk 00:00:37]} {[%emt 00:00:24]}
f6 {[%clk 00:00:21]} {[%emt 00:00:08]} 41. f3 {[%clk 00:00:40]} {[%emt
00:00:30]} e5 {[%clk 00:00:25]} 42. Ra4 {[%clk 00:00:43]} Kf5 {[%clk 00:00:25]}
43. g4+ {[%clk 00:00:46]} hxg4 {[%clk 00:00:29]} 44. Rxg4 {[%clk 00:00:49]} g5
{[%clk 00:00:33]} 45. Kg3 {[%clk 00:00:50]} Rd1 {[%clk 00:00:28]} {[%emt
00:00:11]} 46. Ra4 {[%clk 00:00:53]} Ke6 {[%clk 00:00:33]} {[%emt 00:00:13]} 47.
Ra6+ {[%clk 00:00:52]} Kf7 {[%clk 00:00:21]} {[%emt 00:00:04]} 48. Kf2 {[%clk
00:00:45]} {[%emt 00:00:08]} Kg6 {[%clk 00:00:25]} 49. Rb6 {[%clk 00:00:45]}
{[%emt 00:00:11]} Rd4 {[%clk 00:00:25]} {[%emt 00:00:17]} 50. g4 {[%clk
00:00:27]} {[%emt 00:00:07]} Rf4 {[%clk 00:00:26]} {[%emt 00:00:07]} 51. Kg3
{[%clk 00:00:31]} e4 {[%clk 00:00:25]} {[%emt 00:00:07]} 52. fxe4 {[%clk
00:00:34]} Rxe4 {[%clk 00:00:29]} {[%emt 00:00:04]} 53. Ra6 {[%clk 00:00:35]}
Re3+ {[%clk 00:00:33]} 54. Kf2 {[%clk 00:00:36]} {[%emt 00:00:08]} Rb3 {[%clk
00:00:37]} 55. Kg2 {[%clk 00:00:36]} {[%emt 00:00:05]} Kf7 {[%clk 00:00:36]}
{[%emt 00:00:06]} 56. Kf2 {[%clk 00:00:38]} {[%emt 00:00:05]} Ke7 {[%clk
00:00:33]} {[%emt 00:00:05]} 57. Kg2 {[%clk 00:00:40]} {[%emt 00:00:05]} Rd3
{[%clk 00:00:37]} 58. Kf2 {[%clk 00:00:35]} {[%emt 00:00:06]} Rd6 {[%clk
00:00:41]} 59. Ra8 {[%clk 00:00:30]} {[%emt 00:00:11]} Rb6 {[%clk 00:00:37]}
{[%emt 00:00:13]} 60. Kf3 {[%clk 00:00:28]} {[%emt 00:00:06]} Rb3+ {[%clk
00:00:37]} {[%emt 00:00:11]} 61. Kf2 {[%clk 00:00:31]} Kd6 {[%clk 00:00:33]}
{[%emt 00:00:09]} 62. Ra5 {[%clk 00:00:33]} Ke6 {[%clk 00:00:35]} 63. Kg2
{[%clk 00:00:34]} {[%emt 00:00:07]} Rd3 {[%clk 00:00:34]} {[%emt 00:00:10]} 64.
Kf2 {[%clk 00:00:31]} {[%emt 00:00:08]} Rd5 {[%clk 00:00:34]} 65. Ra6+ {[%clk
00:00:32]} {[%emt 00:00:07]} Ke5 {[%clk 00:00:38]} 66. Kg2 {[%clk 00:00:31]}
{[%emt 00:00:04]} Rd6 {[%clk 00:00:32]} {[%emt 00:00:08]} 67. Ra5+ {[%clk
00:00:21]} {[%emt 00:00:15]} Kf4 {[%clk 00:00:16]} {[%emt 00:00:21]} 68. Ra4+
{[%clk 00:00:24]} {[%emt 00:00:05]} Ke5 {[%clk 00:00:21]} 69. Ra5+ {[%clk
00:00:25]} {[%emt 00:00:08]} Rd5 {[%clk 00:00:25]} 70. Ra6 {[%clk 00:00:23]}
{[%emt 00:00:04]} Rd6 {[%clk 00:00:15]} {[%emt 00:00:15]} 71. Ra5+ {[%clk
00:00:25]} {[%emt 00:00:04]} Ke4 {[%clk 00:00:19]} 72. Ra4+ {[%clk 00:00:27]}
{[%emt 00:00:04]} Rd4 {[%clk 00:00:17]} {[%emt 00:00:06]} 73. Ra6 {[%clk
00:00:27]} {[%emt 00:00:05]} Ke5 {[%clk 00:00:17]} {[%emt 00:00:06]} 74. Kf3
{[%clk 00:00:23]} {[%emt 00:00:10]} Rd3+ {[%clk 00:00:15]} {[%emt 00:00:04]} 75.
Kg2 {[%clk 00:00:22]} {[%emt 00:00:06]} Rd5 {[%clk 00:00:17]} {[%emt 00:00:04]}
76. Kf3 {[%clk 00:00:23]} {[%emt 00:00:06]} f5 {[%clk 00:00:21]} 77. gxf5
{[%clk 00:00:26]} Kxf5 {[%clk 00:00:25]} 78. Ra4 {[%clk 00:00:28]} {[%emt
00:00:10]} Rb5 {[%clk 00:00:27]} 79. Kg3 {[%clk 00:00:30]} Rb3+ {[%clk
00:00:31]} {[%emt 00:00:11]} 80. Kg2 {[%clk 00:00:33]} Kg6 {[%clk 00:00:35]} 81.
Rc4 {[%clk 00:00:35]} {[%emt 00:00:04]} Kh5 {[%clk 00:00:39]} 82. Ra4 {[%clk
00:00:38]} g4 {[%clk 00:00:24]} {[%emt 00:00:23]} 83. Ra8 {[%clk 00:00:42]}
Rb2+ {[%clk 00:00:20]} 84. Kg3 {[%clk 00:00:46]} {[%emt 00:00:04]} Rb3+ {[%clk
00:00:24]} 85. Kg2 {[%clk 00:00:50]} Rb2+ {[%clk 00:00:29]} 86. Kg3 {[%clk
00:00:54]} {[%emt 00:00:08]} 1/2-1/2

[Event "MČR 2022 rapid"]
[Site "Turnov, Czech Republic"]
[Date "2022.09.11"]
[Round "4.8"]
[White "Šimáček, Pavel"]
[Black "Pisk, Petr"]
[Result "1/2-1/2"]
[TimeControl "2x 15 min + 5s/move"]
[WhiteElo "2398"]
[BlackElo "2389"]

1. d4 {[%clk 00:15:07]} Nf6 {[%clk 00:15:04]} {[%emt 00:00:06]} 2. c4 {[%clk
00:15:11]} e6 {[%clk 00:15:06]} {[%emt 00:00:05]} 3. Nc3 {[%clk 00:15:14]}
{[%emt 00:00:04]} Bb4 {[%clk 00:15:08]} 4. Qc2 {[%clk 00:15:12]} {[%emt
00:00:09]} d5 {[%clk 00:13:05]} {[%emt 00:02:06]} 5. a3 {[%clk 00:15:09]}
{[%emt 00:00:08]} Bxc3+ {[%clk 00:12:46]} {[%emt 00:00:23]} 6. Qxc3 {[%clk
00:15:13]} {[%emt 00:00:06]} dxc4 {[%clk 00:12:46]} {[%emt 00:00:04]} 7. Qxc4
{[%clk 00:15:16]} b6 {[%clk 00:12:05]} {[%emt 00:00:45]} 8. Bf4 {[%clk
00:15:19]} {[%emt 00:00:18]} Ba6 {[%clk 00:11:30]} {[%emt 00:00:23]} 9. Qxc7
{[%clk 00:15:22]} {[%emt 00:00:10]} Qxc7 {[%clk 00:11:21]} {[%emt 00:00:07]} 10.
Bxc7 {[%clk 00:15:25]} Nc6 {[%clk 00:11:22]} {[%emt 00:00:06]} 11. Nf3 {[%clk
00:08:51]} {[%emt 00:06:39]} Rc8 {[%clk 00:11:01]} {[%emt 00:00:36]} 12. Bf4
{[%clk 00:08:24]} {[%emt 00:00:33]} O-O {[%clk 00:09:11]} {[%emt 00:01:50]} 13.
Bd2 {[%clk 00:07:21]} {[%emt 00:01:02]} Na5 {[%clk 00:08:04]} {[%emt 00:01:14]}
14. Bb4 {[%clk 00:05:50]} {[%emt 00:01:34]} Rfe8 {[%clk 00:07:53]} {[%emt
00:00:16]} 15. Nd2 {[%clk 00:05:16]} {[%emt 00:00:39]} Nd5 {[%clk 00:05:02]}
{[%emt 00:03:02]} 16. Kd1 {[%clk 00:04:08]} {[%emt 00:01:10]} Red8 {[%clk
00:03:48]} {[%emt 00:01:16]} 17. Bxa5 {[%clk 00:03:14]} {[%emt 00:01:02]} bxa5
{[%clk 00:03:49]} {[%emt 00:00:04]} 18. e3 {[%clk 00:03:17]} Bxf1 {[%clk
00:03:35]} {[%emt 00:00:17]} 19. Rxf1 {[%clk 00:03:20]} {[%emt 00:00:06]} e5
{[%clk 00:02:24]} {[%emt 00:01:13]} 20. Nf3 {[%clk 00:01:41]} {[%emt 00:01:43]}
Rb8 {[%clk 00:02:07]} {[%emt 00:00:21]} 21. Ra2 {[%clk 00:00:48]} {[%emt
00:01:00]} e4 {[%clk 00:01:55]} {[%emt 00:00:16]} 22. Nd2 {[%clk 00:00:50]}
{[%emt 00:00:07]} f5 {[%clk 00:01:56]} {[%emt 00:00:05]} 23. Ke2 {[%clk
00:00:41]} {[%emt 00:00:10]} Rdc8 {[%clk 00:01:53]} {[%emt 00:00:11]} 24. Rb1
{[%clk 00:00:30]} {[%emt 00:00:12]} a4 {[%clk 00:01:33]} {[%emt 00:00:26]} 25.
Kd1 {[%clk 00:00:26]} {[%emt 00:00:08]} f4 {[%clk 00:01:17]} {[%emt 00:00:21]}
26. exf4 {[%clk 00:00:26]} {[%emt 00:00:07]} Nxf4 {[%clk 00:01:19]} {[%emt
00:00:05]} 27. g3 {[%clk 00:00:28]} {[%emt 00:00:04]} Nd3 {[%clk 00:01:19]}
{[%emt 00:00:04]} 28. Nxe4 {[%clk 00:00:31]} {[%emt 00:00:13]} Rd8 {[%clk
00:01:10]} 29. Ke2 {[%clk 00:00:30]} {[%emt 00:00:06]} Rxd4 {[%clk 00:00:54]}
{[%emt 00:00:20]} 30. Ke3 {[%clk 00:00:34]} Rdd8 {[%clk 00:00:47]} {[%emt
00:00:19]} 31. Rd1 {[%clk 00:00:35]} Ne5 {[%clk 00:00:48]} {[%emt 00:00:06]} 32.
Rxd8+ {[%clk 00:00:37]} Rxd8 {[%clk 00:00:52]} 33. Ke2 {[%clk 00:00:39]} Nc4
{[%clk 00:00:53]} {[%emt 00:00:05]} 34. Ra1 {[%clk 00:00:36]} {[%emt 00:00:04]}
Rb8 {[%clk 00:00:32]} {[%emt 00:00:24]} 35. Kd3 {[%clk 00:00:35]} {[%emt
00:00:06]} Nxb2+ {[%clk 00:00:30]} {[%emt 00:00:07]} 36. Kd4 {[%clk 00:00:38]}
{[%emt 00:00:09]} Rc8 {[%clk 00:00:14]} {[%emt 00:00:14]} 37. Nd6 {[%clk
00:00:35]} {[%emt 00:00:07]} Rc2 {[%clk 00:00:15]} {[%emt 00:00:05]} 38. Re1
{[%clk 00:00:37]} {[%emt 00:00:04]} h6 {[%clk 00:00:14]} {[%emt 00:00:06]} 39.
Re8+ {[%clk 00:00:38]} {[%emt 00:00:04]} Kh7 {[%clk 00:00:18]} 40. Rf8 {[%clk
00:00:42]} {[%emt 00:00:05]} Rd2+ {[%clk 00:00:17]} {[%emt 00:00:05]} 41. Kc5
{[%clk 00:00:44]} {[%emt 00:00:04]} Nd3+ {[%clk 00:00:12]} {[%emt 00:00:06]} 42.
Kb5 {[%clk 00:00:47]} Nxf2 {[%clk 00:00:13]} {[%emt 00:00:10]} 43. Nc4 {[%clk
00:00:49]} Rc2 {[%clk 00:00:15]} {[%emt 00:00:04]} 1/2-1/2

[Event "MČR 2022 rapid"]
[Site "Turnov, Czech Republic"]
[Date "2022.09.11"]
[Round "5.2"]
[White "Jansa, Vlastimil"]
[Black "Kraus, Tomáš"]
[Result "1-0"]
[TimeControl "2x 15 min + 5s/move"]
[WhiteElo "2452"]
[BlackElo "2395"]

1. e4 {[%clk 00:15:06]} {[%emt 00:00:07]} c5 {[%clk 00:15:09]} 2. Nf3 {[%clk
00:15:09]} {[%emt 00:00:04]} e6 {[%clk 00:15:13]} 3. Nc3 {[%clk 00:15:10]}
{[%emt 00:00:04]} Nc6 {[%clk 00:15:12]} {[%emt 00:00:07]} 4. d4 {[%clk
00:15:13]} cxd4 {[%clk 00:15:15]} {[%emt 00:00:04]} 5. Nxd4 {[%clk 00:15:17]}
Nf6 {[%clk 00:15:19]} 6. g3 {[%clk 00:14:53]} {[%emt 00:00:29]} d5 {[%clk
00:13:33]} {[%emt 00:01:50]} 7. Bg2 {[%clk 00:14:43]} {[%emt 00:00:15]} dxe4
{[%clk 00:12:34]} {[%emt 00:01:05]} 8. Nxc6 {[%clk 00:14:33]} {[%emt 00:00:13]}
Qxd1+ {[%clk 00:12:38]} {[%emt 00:00:06]} 9. Kxd1 {[%clk 00:14:33]} {[%emt
00:00:05]} bxc6 {[%clk 00:12:41]} 10. Nxe4 {[%clk 00:14:32]} {[%emt 00:00:06]}
Nxe4 {[%clk 00:12:01]} {[%emt 00:00:43]} 11. Bxe4 {[%clk 00:14:35]} Bb7 {[%clk
00:12:01]} {[%emt 00:00:09]} 12. Be3 {[%clk 00:13:47]} {[%emt 00:01:20]} O-O-O+
{[%clk 00:11:26]} {[%emt 00:05:49]} 13. Kc1 {[%clk 00:13:48]} c5 {[%clk
00:11:10]} 14. Bxb7+ {[%clk 00:13:46]} Kxb7 {[%clk 00:11:14]} 15. c3 {[%clk
00:13:36]} Kc6 {[%clk 00:10:50]} {[%emt 00:00:05]} 16. Kc2 {[%clk 00:13:39]}
Be7 {[%clk 00:09:57]} 17. Rad1 {[%clk 00:13:40]} Rd5 {[%clk 00:09:25]} 18. c4
{[%clk 00:13:32]} Rdd8 {[%clk 00:09:14]} 19. Rxd8 {[%clk 00:13:10]} Rxd8 {[%clk
00:09:18]} 20. Rd1 {[%clk 00:13:11]} Rxd1 {[%clk 00:08:51]} {[%emt 00:00:04]}
21. Kxd1 {[%clk 00:13:14]} Bf6 {[%clk 00:07:10]} {[%emt 00:00:35]} 22. Kc2
{[%clk 00:13:15]} {[%emt 00:00:04]} Bd4 {[%clk 00:06:45]} {[%emt 00:00:27]} 23.
Bxd4 {[%clk 00:12:54]} {[%emt 00:00:30]} cxd4 {[%clk 00:06:48]} 24. b4 {[%clk
00:12:56]} e5 {[%clk 00:06:17]} {[%emt 00:00:39]} 25. Kd3 {[%clk 00:12:53]}
{[%emt 00:00:05]} a6 {[%clk 00:04:56]} {[%emt 00:01:26]} 26. a4 {[%clk
00:11:52]} {[%emt 00:01:06]} g5 {[%clk 00:03:32]} {[%emt 00:01:30]} 27. f4
{[%clk 00:08:20]} {[%emt 00:03:37]} gxf4 {[%clk 00:03:11]} {[%emt 00:00:30]} 28.
gxf4 {[%clk 00:08:24]} f6 {[%clk 00:03:15]} 29. a5 {[%clk 00:07:53]} {[%emt
00:00:35]} h5 {[%clk 00:03:01]} {[%emt 00:00:18]} 30. h4 {[%clk 00:07:52]}
{[%emt 00:00:06]} Kd6 {[%clk 00:02:01]} {[%emt 00:01:06]} 31. b5 {[%clk
00:07:33]} {[%emt 00:00:22]} axb5 {[%clk 00:02:00]} {[%emt 00:00:06]} 32. cxb5
{[%clk 00:07:36]} Kc5 {[%clk 00:02:04]} {[%emt 00:00:06]} 33. b6 {[%clk
00:06:51]} {[%emt 00:00:47]} Kc6 {[%clk 00:02:08]} 34. Kc4 {[%clk 00:05:27]}
{[%emt 00:01:34]} Kb7 {[%clk 00:02:09]} {[%emt 00:00:04]} 35. fxe5 {[%clk
00:04:46]} {[%emt 00:00:43]} fxe5 {[%clk 00:02:13]} 36. Kb5 {[%clk 00:04:39]}
{[%emt 00:00:13]} d3 {[%clk 00:01:59]} {[%emt 00:00:22]} 37. a6+ {[%clk
00:04:43]} Kb8 {[%clk 00:00:19]} {[%emt 00:01:46]} 38. Kc6 {[%clk 00:04:39]}
{[%emt 00:00:05]} d2 {[%clk 00:00:17]} {[%emt 00:00:07]} 39. a7+ {[%clk
00:04:31]} {[%emt 00:00:12]} Ka8 {[%clk 00:00:19]} {[%emt 00:00:05]} 40. Kc7
{[%clk 00:04:22]} {[%emt 00:00:13]} d1=Q {[%clk 00:00:19]} {[%emt 00:00:06]} 41.
b7+ {[%clk 00:04:24]} {[%emt 00:00:06]} Kxa7 {[%clk 00:00:22]} 42. b8=Q+ {[%emt
00:00:05]} 1-0

[Event "MČR 2022 rapid"]
[Site "Turnov, Czech Republic"]
[Date "2022.09.11"]
[Round "5.3"]
[White "Finěk, Václav"]
[Black "Červený, Martin"]
[Result "1/2-1/2"]
[TimeControl "2x 15 min + 5s/move"]
[WhiteElo "2062"]
[BlackElo "2413"]

1. d4 {[%clk 00:15:09]} {[%emt 00:00:06]} d5 {[%clk 00:15:09]} 2. c4 {[%clk
00:15:13]} {[%emt 00:00:05]} c6 {[%clk 00:15:13]} 3. Nf3 {[%clk 00:15:15]} Nf6
{[%clk 00:15:16]} 4. Qc2 {[%clk 00:15:19]} {[%emt 00:00:04]} g6 {[%clk
00:14:50]} {[%emt 00:00:28]} 5. Bf4 {[%clk 00:15:13]} {[%emt 00:00:11]} Bg7
{[%clk 00:14:44]} {[%emt 00:00:12]} 6. e3 {[%clk 00:15:15]} {[%emt 00:00:06]}
O-O {[%clk 00:14:44]} {[%emt 00:00:04]} 7. Nc3 {[%clk 00:14:42]} {[%emt
00:00:36]} a6 {[%clk 00:12:34]} {[%emt 00:02:14]} 8. cxd5 {[%clk 00:14:01]}
{[%emt 00:00:56]} cxd5 {[%clk 00:12:26]} {[%emt 00:00:06]} 9. Bd3 {[%clk
00:13:35]} {[%emt 00:00:27]} Nc6 {[%clk 00:12:16]} {[%emt 00:00:16]} 10. a3
{[%clk 00:13:34]} {[%emt 00:00:05]} Nh5 {[%clk 00:11:46]} {[%emt 00:00:40]} 11.
Bg5 {[%clk 00:12:27]} {[%emt 00:01:09]} Bg4 {[%clk 00:11:39]} {[%emt 00:00:11]}
12. Qb3 {[%clk 00:11:08]} {[%emt 00:01:28]} Bxf3 {[%clk 00:11:02]} {[%emt
00:00:46]} 13. gxf3 {[%clk 00:11:11]} h6 {[%clk 00:10:11]} {[%emt 00:00:50]} 14.
Bh4 {[%clk 00:10:48]} {[%emt 00:00:27]} Qd7 {[%clk 00:10:01]} {[%emt 00:00:15]}
15. Qxd5 {[%clk 00:08:17]} {[%emt 00:02:36]} Qh3 {[%clk 00:09:34]} {[%emt
00:00:37]} 16. Bg3 {[%clk 00:06:49]} {[%emt 00:07:29]} Rad8 {[%clk 00:08:50]}
17. Qb3 {[%clk 00:05:42]} Nxg3 {[%clk 00:08:31]} 18. fxg3 {[%clk 00:05:43]}
Bxd4 {[%clk 00:08:26]} {[%emt 00:00:08]} 19. O-O-O {[%clk 00:04:17]} Bxe3+
{[%clk 00:08:05]} 20. Kb1 {[%clk 00:04:19]} Ne5 {[%clk 00:07:01]} 21. Be4
{[%clk 00:03:32]} {[%emt 00:00:40]} b5 {[%clk 00:06:34]} {[%emt 00:00:27]} 22.
Nd5 {[%clk 00:03:05]} {[%emt 00:00:31]} Bc5 {[%clk 00:06:06]} {[%emt 00:00:33]}
23. Nf4 {[%clk 00:02:34]} {[%emt 00:00:33]} Rxd1+ {[%clk 00:06:09]} {[%emt
00:00:06]} 24. Rxd1 {[%clk 00:02:27]} {[%emt 00:00:08]} Qxh2 {[%emt 00:00:06]}
25. Nxg6 {[%clk 00:01:54]} {[%emt 00:00:36]} Nxg6 {[%clk 00:05:43]} {[%emt
00:00:36]} 26. Bxg6 {[%clk 00:01:56]} e6 {[%clk 00:05:10]} {[%emt 00:01:29]} 27.
Bc2 {[%clk 00:01:42]} Qxg3 {[%clk 00:05:10]} 28. Rh1 {[%clk 00:01:37]} Rd8
{[%clk 00:04:27]} {[%emt 00:00:36]} 29. Rxh6 {[%clk 00:01:05]} {[%emt
00:00:31]} Bf8 {[%clk 00:04:12]} {[%emt 00:00:20]} 30. Rh1 {[%clk 00:00:43]}
{[%emt 00:00:27]} Bg7 {[%clk 00:04:14]} {[%emt 00:00:06]} 31. Rd1 {[%clk
00:00:40]} {[%emt 00:00:08]} Rxd1+ {[%clk 00:04:05]} {[%emt 00:00:11]} 32. Bxd1
{[%clk 00:00:44]} Qe5 {[%clk 00:04:05]} {[%emt 00:00:10]} 33. Qc2 {[%clk
00:00:46]} a5 {[%clk 00:03:41]} {[%emt 00:00:37]} 34. Qc8+ {[%clk 00:00:39]}
{[%emt 00:00:19]} Kh7 {[%clk 00:03:41]} 35. Qc2+ {[%clk 00:00:43]} f5 {[%clk
00:03:41]} {[%emt 00:00:05]} 36. Be2 {[%clk 00:00:35]} {[%emt 00:00:04]} a4
{[%clk 00:03:14]} {[%emt 00:00:33]} 37. Bd3 {[%clk 00:00:25]} {[%emt 00:00:14]}
b4 {[%clk 00:03:11]} {[%emt 00:00:09]} 38. axb4 {[%clk 00:00:17]} {[%emt
00:00:10]} a3 {[%clk 00:03:15]} {[%emt 00:00:06]} 39. Qc3 {[%clk 00:00:12]}
{[%emt 00:00:05]} axb2 {[%clk 00:02:34]} {[%emt 00:00:47]} 40. Qxe5 {[%clk
00:00:13]} {[%emt 00:00:06]} Bxe5 {[%clk 00:02:37]} {[%emt 00:00:04]} 41. Bc4
{[%clk 00:00:17]} Kh6 {[%clk 00:02:34]} {[%emt 00:00:05]} 42. Bxe6 {[%clk
00:00:20]} Kg5 {[%clk 00:02:37]} {[%emt 00:00:05]} 43. b5 {[%clk 00:00:25]} Kf4
{[%clk 00:02:39]} {[%emt 00:00:05]} 44. b6 {[%clk 00:00:29]} Kxf3 {[%clk
00:02:28]} {[%emt 00:00:14]} 45. Bxf5 {[%clk 00:00:32]} {[%emt 00:00:10]} Ke3
{[%clk 00:02:30]} 1/2-1/2

[Event "MČR 2022 rapid"]
[Site "Turnov, Czech Republic"]
[Date "2022.09.11"]
[Round "5.4"]
[White "Baláček, Tadeáš"]
[Black "Šimáček, Pavel"]
[Result "1-0"]
[TimeControl "2x 15 min + 5s/move"]
[WhiteElo "2247"]
[BlackElo "2398"]

1. d4 {[%clk 00:15:08]} {[%emt 00:00:13]} Nf6 {[%clk 00:15:08]} 2. c4 {[%clk
00:15:11]} c5 {[%clk 00:15:11]} 3. d5 {[%clk 00:15:14]} {[%emt 00:00:14]} e6
{[%clk 00:15:15]} 4. Nc3 {[%clk 00:15:18]} exd5 {[%clk 00:15:19]} 5. cxd5
{[%clk 00:15:22]} {[%emt 00:00:04]} d6 {[%clk 00:15:24]} 6. Nf3 {[%clk
00:15:22]} g6 {[%clk 00:15:26]} 7. g3 {[%clk 00:15:22]} {[%emt 00:00:05]} Bg7
{[%clk 00:15:27]} 8. Bg2 {[%clk 00:15:25]} O-O {[%clk 00:15:30]} {[%emt
00:00:10]} 9. O-O {[%clk 00:15:27]} Re8 {[%clk 00:15:33]} 10. Re1 {[%clk
00:15:28]} {[%emt 00:00:09]} a6 {[%clk 00:15:30]} 11. a4 {[%clk 00:15:30]}
{[%emt 00:00:04]} Ne4 {[%clk 00:15:30]} {[%emt 00:00:08]} 12. Nxe4 {[%clk
00:15:32]} Rxe4 {[%clk 00:15:34]} 13. Qc2 {[%clk 00:15:32]} {[%emt 00:00:09]}
Rb4 {[%clk 00:13:38]} {[%emt 00:01:58]} 14. Ra2 {[%clk 00:15:34]} a5 {[%clk
00:13:12]} {[%emt 00:00:35]} 15. Bd2 {[%clk 00:15:36]} Na6 {[%clk 00:13:15]}
{[%emt 00:00:04]} 16. Bc3 {[%clk 00:14:54]} {[%emt 00:00:46]} Bd7 {[%clk
00:12:46]} {[%emt 00:00:32]} 17. e4 {[%clk 00:13:46]} {[%emt 00:01:12]} b5
{[%clk 00:12:33]} {[%emt 00:00:18]} 18. e5 {[%clk 00:12:58]} {[%emt 00:00:53]}
Bf5 {[%clk 00:08:15]} {[%emt 00:04:23]} 19. Qd2 {[%clk 00:12:11]} {[%emt
00:00:52]} Rxa4 {[%clk 00:07:27]} {[%emt 00:00:53]} 20. Rxa4 {[%clk 00:12:06]}
{[%emt 00:00:10]} bxa4 {[%clk 00:07:31]} 21. e6 {[%clk 00:11:16]} {[%emt
00:01:00]} Nb4 {[%clk 00:07:20]} {[%emt 00:00:16]} 22. g4 {[%clk 00:08:58]}
{[%emt 00:02:17]} Bxg4 {[%clk 00:07:13]} {[%emt 00:00:13]} 23. exf7+ {[%clk
00:08:55]} {[%emt 00:00:09]} Kxf7 {[%clk 00:07:08]} {[%emt 00:00:10]} 24. Qf4+
{[%clk 00:08:57]} {[%emt 00:00:06]} Bf5 {[%clk 00:07:11]} 25. Ng5+ {[%clk
00:08:36]} {[%emt 00:00:30]} Kg8 {[%clk 00:06:57]} {[%emt 00:00:22]} 26. Ne6
{[%clk 00:02:33]} {[%emt 00:07:08]} Bxe6 {[%clk 00:06:24]} 27. dxe6 {[%clk
00:02:12]} Ra7 {[%clk 00:06:28]} 28. Qc4 {[%clk 00:01:09]} {[%emt 00:01:08]}
Re7 {[%clk 00:05:53]} {[%emt 00:00:39]} 29. Re2 {[%clk 00:01:06]} {[%emt
00:00:05]} d5 {[%clk 00:05:04]} {[%emt 00:00:54]} 30. Qxc5 {[%clk 00:00:51]}
{[%emt 00:00:33]} d4 {[%clk 00:04:43]} {[%emt 00:00:18]} 31. Bd2 {[%clk
00:00:54]} d3 {[%clk 00:03:21]} {[%emt 00:01:25]} 32. Re1 {[%clk 00:00:58]} Bd4
{[%clk 00:02:44]} {[%emt 00:00:44]} 33. Qg5 {[%clk 00:00:22]} {[%emt 00:00:41]}
Nc2 {[%clk 00:02:27]} {[%emt 00:00:21]} 34. Re4 {[%emt 00:00:10]} Qf8 {[%clk
00:02:05]} {[%emt 00:00:19]} 35. Rf4 {[%clk 00:00:23]} {[%emt 00:00:07]} Qg7
{[%clk 00:01:39]} {[%emt 00:00:38]} 36. Bd5 {[%clk 00:00:25]} Kh8 {[%clk
00:01:42]} {[%emt 00:00:16]} 37. Rf7 {[%clk 00:00:12]} {[%emt 00:00:05]} Rxf7
{[%clk 00:01:24]} {[%emt 00:00:17]} 38. exf7 {[%clk 00:00:16]} Bf6 {[%clk
00:01:22]} {[%emt 00:00:11]} 39. Qf4 {[%clk 00:00:16]} {[%emt 00:00:05]} 1-0